Cogmind - Beta 17.1 @@@ ROGUE MODE // 2026.09.03 @ 23:02:55 Player: Spoodle Result: Destroyed by D8-N9B(j) with Overtuned Pulse Rifle Performance ------------- Evolutions (2) 1000 Regions Visited (8) 1600 Robots Destroyed (110) 550 Value Destroyed (2397) 2397 Prototype IDs (28) 560 Alien Tech Used (0) 0 Bonus (10053) 10053 TOTAL SCORE: 16160 Bonus ------- Follower Combat Kills 603 Prayed to X0-1V1 5000 Major X0-1V1 Interference 1150 Subatomizer Sterilization 3000 Registered with UFD 300 Cogmind --------- Core Integrity 0/290 Matter 31/300 Energy 198/265 System Corruption 0% Temperature Cool (12) Movement Rolling (190) Ox6 Location -8/Scraptown Parts ------- > --- POWER (1) -------- Improved Ion Engine > --- PROPULSION (4) --- Compact Wheel > --- UTILITY (4) ------ Large Storage Unit Huge Storage Unit Enhanced Optical Array > --- WEAPON (2) ------- (None) > --- INVENTORY (27) --- Compact Wheel Improved Heat Sink High-capacity Matter Pod (200) IFF Parser Advanced Terrain Scanner Experimental Terrain Scan Processor Improved Medium Laser Improved Medium Laser Improved Medium Laser Improved Assault Rifle Improved Datajack Plasma Cutter Makeshift Sword Peak State ------------ > --- POWER ------------ Cold Fusion Reactor > --- PROPULSION ------- Advanced Treads Advanced Treads Advanced Treads Advanced Treads > --- UTILITY ---------- Huge Storage Unit Enhanced Optical Array Shield Generator X0-1V1's Piety Tracker > --- WEAPON ----------- Improved Medium Laser Improved Datajack > --- INVENTORY -------- Improved Ion Engine Light Treads Compact Wheel Compact Wheel Improved Heat Sink Large Storage Unit High-capacity Matter Pod IFF Parser Advanced Terrain Scanner Experimental Terrain Scan Processor Improved Medium Laser Improved Medium Laser Improved Assault Rifle Heavy Battle Rifle Heavy Battle Rifle Grenade Launcher Rocket Launcher Plasma Cutter CPS Tube Makeshift Sword [Rating: 50] Favorites ----------- Power Improved Ion Engine Engine Improved Ion Engine Power Core Light Nuclear Core Reactor Cold Fusion Reactor Propulsion Compact Wheel Treads Light Treads Leg Aluminum Leg Wheel Compact Wheel Utility Huge Storage Unit Device X0-1V1's Piety Tracker Storage Huge Storage Unit Processor Enhanced Optical Array Hackware Hacking Suite Weapon Improved Assault Rifle Energy Gun Improved Medium Laser Ballistic Gun Improved Assault Rifle Launcher Rocket Launcher Special Weapon Mining Laser Slashing Weapon Makeshift Sword Special Melee Weapon Improved Datajack Build | -11 -10 -10 -10 -9 -8 -8 -8 -8 ------- Run | Yrd Mat Min Exi Min Mat Sto Rec Scr Slots Evolved 4 | . . . . . 4 . . . Power . | . . . . . . . . . Propulsion 2 | . . . . . 2 . . . Utility 2 | . . . . . 2 . . . Weapon . | . . . . . . . . . Parts Attached 77 | 7 14 3 1 2 16 17 . 17 Power 9 | 1 2 1 . . 2 2 . 1 Engine 7 | 1 2 1 . . 1 2 . . Core 1 | . . . . . 1 . . . Reactor 1 | . . . . . . . . 1 Propulsion 27 | 2 4 2 . . 5 9 . 5 Treads 16 | . 3 . . . 4 5 . 4 Leg 3 | 2 . . . . . . . 1 Wheel 8 | . 1 2 . . 1 4 . . Hover . | . . . . . . . . . Flight . | . . . . . . . . . Utility 16 | 2 3 . . . 6 1 . 4 Device 10 | 1 1 . . . 6 . . 2 Storage 4 | 1 2 . . . . . . 1 Processor 1 | . . . . . . . . 1 Hackware 1 | . . . . . . 1 . . Protection . | . . . . . . . . . Artifact . | . . . . . . . . . Weapon 25 | 2 5 . 1 2 3 5 . 7 Energy Gun 10 | 2 1 . . . 2 3 . 2 Energy Cannon . | . . . . . . . . . Ballistic Gun 8 | . 3 . . 1 1 1 . 2 Ballistic Cannon . | . . . . . . . . . Launcher 2 | . . . . 1 . . . 1 Special Weapon 3 | . 1 . . . . 1 . 1 Impact Weapon . | . . . . . . . . . Slashing Weapon 1 | . . . 1 . . . . . Piercing Weapon . | . . . . . . . . . Special Melee Weapon 1 | . . . . . . . . 1 Unidentified Prototypes 5 | . 2 . . . 1 2 . . Parts Lost 20 | . 1 . . . 5 3 . 11 Power 2 | . 1 . . . . . . 1 Propulsion 7 | . . . . . 2 2 . 3 Utility 4 | . . . . . 2 . . 2 Weapon 7 | . . . . . 1 1 . 5 Highest Loss Streak 10 | . 1 . . . 2 2 . 10 To Critical Strikes 1 | . . . . . . . . 1 Average Backups 22 | 4 13 22 24 24 24 26 26 24 Power 1 | . . 2 3 3 1 1 1 1 Propulsion 4 | 2 3 4 5 5 3 5 6 4 Utility 6 | . 3 6 7 7 6 7 7 7 Weapon 9 | 1 5 8 9 9 11 10 10 9 Tool/Special . | . . . . . . . . . Unused Backups 37 | . 4 3 1 . 7 5 . 17 Power 3 | . . 1 . . 1 . . 1 Propulsion 6 | . . 1 . . . 3 . 2 Utility 16 | . 2 1 1 . 1 1 . 10 Weapon 10 | . 2 . . . 5 . . 3 Tool/Special 2 | . . . . . . 1 . 1 Average Slot Usage (%) 99 | . 99 100 85 100 99 99 100 99 Engine 9 | . 13 14 14 14 4 4 9 8 Core 1 | . . . . . 4 4 . . Treads 15 | . 9 3 . . 24 19 18 18 Leg 1 | . 11 . . . . . . . Wheel 16 | . 7 24 28 28 11 15 18 17 Device 17 | . 14 14 14 14 26 18 18 17 Storage 10 | . 14 14 14 14 9 9 9 9 Processor 1 | . . . . . . . . 3 Hackware 3 | . . . . . . 8 9 5 Energy Gun 5 | . 2 . . . . 7 9 8 Ballistic Gun 12 | . 25 28 . 27 17 10 9 5 Special Melee Weapon 1 | . . . . . . . . 3 Peak Build Rating 50 | 7 25 25 27 27 38 37 37 50 Average Rating 31 | 5 12 25 24 25 35 35 37 37 On Entrance 24 | . 7 25 25 24 26 37 37 37 Avg Prop Armor Cover (%) 18 | . 12 12 . . 16 18 19 20 Naked Turns . | . . . . . . . . . Heaviest Build 111 | 13 92 92 88 92 98 97 95 111 Greatest Support 88 | 20 40 32 32 32 80 80 32 88 Greatest Overweight (x) 6 | . 5 5 2 2 3 2 2 6 Average Overweight (x) 2 | . 2 2 2 2 2 1 2 2 Largest Inventory Capacity 27 | 8 25 25 25 25 25 27 27 27 Average Capacity 24 | 7 17 25 25 25 25 26 27 26 Most Carried 27 | 6 20 24 25 25 25 27 27 27 Average Carried 23 | 4 13 22 24 24 24 26 27 25 Final Capacity 27 | 8 25 25 25 25 25 27 27 27 Final Carried 27 | 6 20 24 25 24 24 27 27 13 Class Distribution -------------------- 47% | Commander-Mutant 35% | Mutant 17% | Scavenger-Mutant Dominant Class ---------------- Mutant | -10/Materials Mutant | -10/Mines Mutant | -10/Exiles Mutant | -9/Mines Scavenger-Mutant | -8/Materials Scavenger-Mutant | -8/Storage Commander-Mutant | -8/Recycling Commander-Mutant | -8/Scraptown Resources | -11 -10 -10 -10 -9 -8 -8 -8 -8 ----------- Run | Yrd Mat Min Exi Min Mat Sto Rec Scr Matter Collected 2737 | 304 485 134 32 118 987 533 . 144 Remotely . | . . . . . . . . . Salvage Created 4069 | 147 662 336 . 304 1198 999 163 260 Parts 230 | 10 54 13 . 30 42 59 11 11 Haulers Intercepted 7 | . 2 . . . 1 4 . . Recyclers Shooed 5 | . 2 1 . . 1 1 . . Parts Field Recycled . | . . . . . . . . . Retrieved Matter . | . . . . . . . . . Parts Self-Destructed . | . . . . . . . . . Prevented . | . . . . . . . . . Parts Restored . | . . . . . . . . . Kills | -11 -10 -10 -10 -9 -8 -8 -8 -8 ------- Run | Yrd Mat Min Exi Min Mat Sto Rec Scr Combat Hostiles Destroyed 62 | . 12 4 . 6 17 11 3 9 Guns 50 | . 12 4 . 3 17 11 3 . AOE 12 | . . . . 3 . . . 9 Classes Destroyed 17 | 3 5 . . . 3 1 . 5 Worker 11 | 2 1 . . 3 1 4 . . Builder 5 | . 1 . . 2 1 1 . . Tunneler 6 | 3 1 . . 2 . . . . Hauler 7 | . 2 . . . 1 4 . . Recycler 11 | 1 2 2 . . 3 3 . . Mechanic 1 | . . . . . . 1 . . Operator 2 | . . . . . 1 1 . . Watcher 4 | . 3 . . . 1 . . . Swarmer 16 | . 9 . . 4 . 3 . . Grunt 22 | . 3 4 . 3 12 . . . Sentry 14 | . . . . . 3 8 3 . Hunter 2 | . . . . . 2 . . . Bolteater 2 | . . . . . . . . 2 Federalist 3 | . . . . . . . . 3 Explorer 1 | . . . . . . . . 1 Ranger 2 | . . . . . . . . 2 Scrapper 1 | . . . . . . . . 1 Best Kill Streak 9 | 4 7 4 . 7 8 6 2 9 Combat Bots Only 9 | . 5 4 . 4 5 3 2 9 Max Kills in Single Turn 3 | 1 1 1 . 3 1 1 1 2 Gunslinging . | . . . . . . . . . Exploded 3 | . . . . 3 . . . 2 Melee . | . . . . . . . . . Uniques/NPCs Destroyed 1 | . . . . . . . . 1 Triborg (-8/Scraptown) Combat | -11 -10 -10 -10 -9 -8 -8 -8 -8 -------- Run | Yrd Mat Min Exi Min Mat Sto Rec Scr Hostile Shots Fired 369 | . 54 7 . 7 86 60 2 153 Missed 125 | . 14 3 . 2 35 16 . 55 Hits 244 | . 40 4 . 5 51 44 2 98 Melee 17 | . . . . . . . . 17 Projectile 227 | . 40 4 . 5 51 44 2 81 AOE 2 | . . . . 1 . . . 1 Critical Strikes 9 | . . . . . 3 . . 6 Damage Taken 3188 | . 371 48 . 89 670 573 27 1410 Core 417 | . 42 11 . 11 46 57 . 250 Absorbed by Shields 175 | . . . . . 101 . . 74 Ignored by Resistances 221 | . . . . . . 54 . 167 Core Remaining (%) 97 | 100 . . . 94 . . . . Volleys Fired 237 | 13 54 15 . 13 69 60 5 8 Largest 2 | 2 2 2 . 2 2 2 2 1 Hottest 103 | 80 100 46 . 46 103 100 79 33 Shots Fired 462 | 26 107 30 . 26 138 117 10 8 Gun 450 | 26 106 30 . 25 138 115 10 . Cannon . | . . . . . . . . . Launcher 8 | . . . . 1 . . . 7 Special 4 | . 1 . . . . 2 . 1 Kinetic 365 | . 100 30 . 25 135 70 5 . Thermal 85 | 26 4 . . . 3 47 5 . Explosive 8 | . . . . 1 . . . 7 Electromagnetic 3 | . 3 . . . . . . . Robot Hit Streak 42 | 9 15 5 . 10 42 26 10 13 Robot Miss Streak 5 | 3 5 2 . 2 4 2 . 1 Penetration Max . | . . . . . . . . . Secondary Targets 7 | . 2 . . . 5 . . . Max Gunslinging Chain 1 | . 1 . . . 1 . . . Shots Hit Robots 344 | 19 68 20 . 15 116 91 8 7 Core Hits 162 | 7 27 12 . 16 47 34 5 14 Critical Kills . | . . . . . . . . . Critical Parts Destroyed . | . . . . . . . . . Critical Strikes 6 | . . . . . 1 5 . . Burn 4 | . . . . . . 4 . . Destroy 1 | . . . . . . 1 . . Sunder 1 | . . . . . 1 . . . Melee Attacks 2 | . . . . . . . . 2 Impact . | . . . . . . . . . Slashing . | . . . . . . . . . Piercing . | . . . . . . . . . Sneak Attacks 2 | . . . . . . . . 2 Combat Hostiles . | . . . . . . . . . Follow-up Attacks . | . . . . . . . . . Damage Inflicted 6464 | 210 1087 286 . 437 1914 1491 137 902 Guns 5290 | 210 1087 286 . 239 1840 1491 137 . Cannons 74 | . . . . . 74 . . . Explosions 1100 | . . . . 198 . . . 902 Melee . | . . . . . . . . . Ramming . | . . . . . . . . . Kinetic 4304 | . 1017 286 . 239 1794 883 85 . Thermal 962 | 210 . . . 46 46 608 52 . Explosive 1054 | . . . . 152 . . . 902 Electromagnetic 70 | . 70 . . . . . . . Impact . | . . . . . . . . . Slashing . | . . . . . . . . . Piercing . | . . . . . . . . . Entropic 74 | . . . . . 74 . . . Highest Corruption 4 | . . 4 4 4 . . . . Average Corruption 4 | . . 4 4 4 . . . . Corruption Purged . | . . . . . . . . . Corruption Blocked . | . . . . . . . . . Effects 16 | . . 2 5 9 . . . . Message Errors 4 | . . 1 1 2 . . . . Matter Fused 5 | . . . 2 3 . . . . Heat Flow Errors 2 | . . . 1 1 . . . . Energy Discharges 1 | . . 1 . . . . . . Data Loss (minor) 3 | . . . 1 2 . . . . Misfires 1 | . . . . 1 . . . . Overload Shots . | . . . . . . . . . Overflow Damage 113 | . . . . 6 . . . 107 Projectiles . | . . . . . . . . . Explosions 113 | . . . . 6 . . . 107 Melee . | . . . . . . . . . Knockbacks . | . . . . . . . . . Impact . | . . . . . . . . . Kinetic . | . . . . . . . . . Secondary . | . . . . . . . . . Self-Inflicted Damage 161 | . . . . . . . . 161 Shots 4 | . . . . . . . . 4 Rammed . | . . . . . . . . . Targets Rammed . | . . . . . . . . . Kicked . | . . . . . . . . . Crushed . | . . . . . . . . . Highest Temperature 213 | 90 20 4 144 213 59 139 15 48 Average Temperature 30 | 32 4 1 74 89 16 32 6 18 Received Heat Transfer 1150 | . 84 27 . 18 354 198 9 460 Siege Activations . | . . . . . . . . . Martial Activations . | . . . . . . . . . Shielding Activations . | . . . . . . . . . Robots Disrupted . | . . . . . . . . . Combat Hostiles . | . . . . . . . . . Robots Corrupted . | . . . . . . . . . Combat Hostiles . | . . . . . . . . . Parts Fried . | . . . . . . . . . Impact Corruptions . | . . . . . . . . . Robots Melted . | . . . . . . . . . Combat Hostiles . | . . . . . . . . . Parts Melted 8 | . . . . . . 6 2 . Heat Transferred 2290 | 475 . . . 50 100 1554 111 . Parts Sabotaged . | . . . . . . . . . Parts Stolen 3 | . . . . . . . . 3 Parts Stripped . | . . . . . . . . . Power Chain Reactions . | . . . . . . . . . Alert | -11 -10 -10 -10 -9 -8 -8 -8 -8 ------- Run | Yrd Mat Min Exi Min Mat Sto Rec Scr Maximum Alert Level 1 | . 1 . . . 1 . . . Low Security (%) 96 | 100 88 100 . 100 97 100 100 . Level 1 3 | . 11 . . . 2 . . . Level 2 . | . . . . . . . . . Level 3 . | . . . . . . . . . Level 4 . | . . . . . . . . . Level 5 . | . . . . . . . . . High Security . | . . . . . . . . . Max Security . | . . . . . . . . . Sterilizations 1 | . . . . . 1 . . . Peak Influence 242 | 15 242 109 . 154 201 134 142 . Initial 64 | . . 19 . . 32 64 33 . Average 82 | 2 95 40 . 96 112 78 48 . Influence Increases 2016 | 30 455 110 . 259 466 474 222 . Destroy 0b10 Robot/C 1100 | . 240 80 . 140 340 240 60 . Destroy 0b10 Robot/NC 235 | 30 50 10 . 35 40 70 . . Destroy Leader 272 | . 50 20 . 20 84 98 . . Allied During Kill 64 | . . . . 18 . 4 42 . Successful Hack 66 | . 37 . . . . 29 . . Select Force Hacks 30 | . 30 . . . . . . . Disable Machine 45 | . . . . 30 . 15 . . Destroy Structure 24 | . 3 . . 16 2 3 . . Lose Combat Pursuer 60 | . 45 . . . . 15 . . Miscellaneous 120 | . . . . . . . 120 . Influence Decreases 2016 | 30 403 162 . 175 397 541 186 122 Entered New Map 349 | . . 33 . . 52 89 53 122 Time Decay 1537 | 30 393 129 . 135 295 422 133 . Lost Part 90 | . 10 . . . 50 30 . . Lost Ally 40 | . . . . 40 . . . . Squads Dispatched 7 | . 1 . . . 6 . . . Investigation 3 | . 1 . . . 2 . . . Extermination . | . . . . . . . . . Reinforcement 4 | . . . . . 4 . . . Assault . | . . . . . . . . . Garrison . | . . . . . . . . . Intercept . | . . . . . . . . . Searches Triggered . | . . . . . . . . . Construction Impeded . | . . . . . . . . . Haulers Reinforced . | . . . . . . . . . Active Scanning Responses . | . . . . . . . . . Cargo Convoy Interrupts . | . . . . . . . . . Stealth | -11 -10 -10 -10 -9 -8 -8 -8 -8 --------- Run | Yrd Mat Min Exi Min Mat Sto Rec Scr Distress Signals 3 | . . . . . 3 . . . Communications Jammed . | . . . . . . . . . Distress Signals . | . . . . . . . . . Times Spotted 104 | . 21 3 . 8 19 16 2 35 Peak Tracking Total 24 | . 5 1 . 4 4 3 1 24 Tactical Retreats 2 | . 1 . . . . 1 . . Traps | -11 -10 -10 -10 -9 -8 -8 -8 -8 ------- Run | Yrd Mat Min Exi Min Mat Sto Rec Scr Traps Triggered . | . . . . . . . . . Indirectly . | . . . . . . . . . Trap Hack Attempts . | . . . . . . . . . Triggered . | . . . . . . . . . Disarmed 6 | . . . . . . 6 . . Reprogrammed . | . . . . . . . . . Reused . | . . . . . . . . . Traps Extracted . | . . . . . . . . . Installed . | . . . . . . . . . Triggered . | . . . . . . . . . Most Traps Carried 1 | . . . . . . 1 1 1 Machines | -11 -10 -10 -10 -9 -8 -8 -8 -8 ---------- Run | Yrd Mat Min Exi Min Mat Sto Rec Scr Machines Disabled 7 | . . . . 2 . 1 . 4 Max in Single Turn 2 | . . . . 2 . 1 . . Machines Repaired . | . . . . . . . . . Machines Dismantled . | . . . . . . . . . Machines Sabotaged . | . . . . . . . . . Overloaded Fab Kills . | . . . . . . . . . Hacking | -11 -10 -10 -10 -9 -8 -8 -8 -8 --------- Run | Yrd Mat Min Exi Min Mat Sto Rec Scr Machines Accessed 16 | . 6 . 1 . . 7 1 1 Terminals 13 | . 5 . . . . 7 1 . Fabricators . | . . . . . . . . . Repair Stations . | . . . . . . . . . Recycling Units 1 | . 1 . . . . . . . Scanalyzers . | . . . . . . . . . Garrison Access . | . . . . . . . . . Total Hacks 45 | . 20 . 1 . . 18 1 5 Successful 36 | . 13 . 1 . . 16 1 5 Failed 9 | . 7 . . . . 2 . . Catastrophic 1 | . 1 . . . . . . . Database Lockouts . | . . . . . . . . . Manual 29 | . 17 . . . . 12 . . Terminals 38 | . 19 . . . . 18 1 . Fabricators . | . . . . . . . . . Repair Stations . | . . . . . . . . . Recycling Units 1 | . 1 . . . . . . . Scanalyzers . | . . . . . . . . . Garrison Access . | . . . . . . . . . Terminal Hacks 20 | . 5 . 1 . . 8 1 5 Record 6 | . . . 1 . . . . 5 Robot Analysis 2 | . 1 . . . . 1 . . Prototype ID Bank 3 | . 1 . . . . 2 . . Open Door 1 | . . . . . . 1 . . Terminal Index 1 | . . . . . . 1 . . Garrison Index 1 | . . . . . . 1 . . Alert Level 1 | . . . . . . 1 . . Locate Traps 1 | . 1 . . . . . . . Disarm Traps 1 | . . . . . . 1 . . Transport Status 1 | . 1 . . . . . . . Zone Layout 2 | . 1 . . . . . 1 . Fabricator Hacks . | . . . . . . . . . Repair Station Hacks . | . . . . . . . . . Recycling Unit Hacks . | . . . . . . . . . Scanalyzer . | . . . . . . . . . Garrison Access Hacks . | . . . . . . . . . Unauthorized Hacks 16 | . 8 . . . . 8 . . Terminals 15 | . 7 . . . . 8 . . Assimilate 1 | . 1 . . . . . . . Botnet 3 | . 1 . . . . 2 . . Operators 2 | . 1 . . . . 1 . . Skim 9 | . 4 . . . . 5 . . Fabricators . | . . . . . . . . . Repair Stations . | . . . . . . . . . Recycling Units 1 | . 1 . . . . . . . Tunnel 1 | . 1 . . . . . . . Scanalyzers . | . . . . . . . . . Garrison Access . | . . . . . . . . . Data Cores Recovered 1 | . . . . . . 1 . . Used . | . . . . . . . . . Hacking Detections 10 | . 5 . . . . 5 . . Full Trace Events . | . . . . . . . . . Feedback Events . | . . . . . . . . . Feedback Blocked . | . . . . . . . . . Robot Schematics Acquired . | . . . . . . . . . Robots Built . | . . . . . . . . . Authchips . | . . . . . . . . . Time . | . . . . . . . . . Total Robot Build Rating . | . . . . . . . . . Part Schematics Acquired . | . . . . . . . . . Parts Built . | . . . . . . . . . Authchips . | . . . . . . . . . Time . | . . . . . . . . . Total Part Build Rating . | . . . . . . . . . Part Studies Acquired . | . . . . . . . . . Parts Repaired . | . . . . . . . . . Time . | . . . . . . . . . Parts Recycled . | . . . . . . . . . Recycled Matter . | . . . . . . . . . Retrieved Matter . | . . . . . . . . . Retrieved Components . | . . . . . . . . . Parts Scanalyzed . | . . . . . . . . . Part Schematics Acquired . | . . . . . . . . . Parts Damaged . | . . . . . . . . . Bothacking | -11 -10 -10 -10 -9 -8 -8 -8 -8 ------------ Run | Yrd Mat Min Exi Min Mat Sto Rec Scr Used RIF Installer . | . . . . . . . . . Robots Hacked 2 | . . . . . . . . 2 Non-combat . | . . . . . . . . . Combat 2 | . . . . . . . . 2 Robot Hacks Applied 2 | . . . . . . . . 2 parse_system 2 | . . . . . . . . 2 Relay Couplers Released . | . . . . . . . . . Fabnet Peak Effective % . | . . . . . . . . . Robots Rewired . | . . . . . . . . . Allies Hacked . | . . . . . . . . . Hacks Repelled . | . . . . . . . . . Allies | -11 -10 -10 -10 -9 -8 -8 -8 -8 -------- Run | Yrd Mat Min Exi Min Mat Sto Rec Scr Total Allies 15 | . . 3 . . . 11 . 1 Largest Group 10 | . . 3 3 3 . 10 10 10 Highest-Rated Group 573 | . . 40 40 40 . 173 173 573 Highest-Rated Ally 464 | . . 16 16 16 . 29 29 464 Total Orders 1 | . . . . . . . . 1 STAY 1 | . . . . . . . . 1 Ally Attacks 102 | . . . . 9 . 3 6 84 Total Damage 4014 | . . . . 96 . 82 95 3741 Kills 24 | . . . . 1 . 1 . 22 Allies Corrupted . | . . . . . . . . . Allies Melted . | . . . . . . . . . X0-1V1 Amusement Gains 196 | . 11 . . 20 90 . . 75 Average Entertainment 33 | . 11 7 . 20 31 53 25 33 Good Acts 27 | . . 2 . . 6 16 2 1 Bad Acts 9 | . . 1 . 3 2 . 2 1 Intel | -11 -10 -10 -10 -9 -8 -8 -8 -8 ------- Run | Yrd Mat Min Exi Min Mat Sto Rec Scr Active Infowar (turns) 6163 | 28 1120 . . . 389 1039 307 3280 Optics 1189 | . . . . . . . . 1189 IFF 122 | . . . . . . . . 122 Seismic 5916 | 28 1120 . . . 389 1039 307 3033 Robot Analysis Total 2 | . 1 . . . . 1 . . Derelict Logs Recovered 2 | . . 1 . 1 . . . . Drone Launches . | . . . . . . . . . Drone Recoveries . | . . . . . . . . . Exploration | -11 -10 -10 -10 -9 -8 -8 -8 -8 ------------- Run | Yrd Mat Min Exi Min Mat Sto Rec Scr Turns Passed 7668 | 131 1144 389 314 344 720 1039 307 3280 Spaces Moved 4800 | 66 599 240 237 221 249 569 201 2418 Core 10 | 10 . . . . . . . . Treads 173 | . 30 . . . 98 35 . 10 Legs 321 | 56 265 . . . . . . . Wheels 4296 | . 304 240 237 221 151 534 201 2408 Hover . | . . . . . . . . . Flight . | . . . . . . . . . Fastest Speed 50 | 50 120 130 130 130 130 130 130 130 Average Speed 136 | 109 150 134 130 130 181 136 130 130 Slowest Speed 240 | 120 190 175 130 130 240 240 130 232 Overloaded Moves . | . . . . . . . . . Propulsion Burnouts . | . . . . . . . . . Robots Hopped . | . . . . . . . . . Potential Cave-ins . | . . . . . . . . . Cave-ins Triggered . | . . . . . . . . . Exploration Rate (%) 53 | 3 73 66 59 37 21 63 67 89 Regions Visited 8 Branch Regions 6 Pre-discovered Areas 6 | . 1 . 1 1 . 3 . . Known Exits Taken 2 | . . . . . 1 1 . . Unknown Exits Taken 6 | 1 1 1 1 1 . . 1 . Scrap Searched 6 | . . 1 . 1 . . . 4 Spaces Dug 2 | . . . . . . 2 . . Terrain Destroyed 36 | . . . . 18 . 2 . 16 Melee . | . . . . . . . . . Projectile 2 | . . . . . . 2 . . AOE 34 | . . . . 18 . . . 16 Terrain Rammed . | . . . . . . . . . Walls Destroyed . | . . . . . . . . . Machines Disabled . | . . . . . . . . . Actions | -11 -10 -10 -10 -9 -8 -8 -8 -8 --------- Run | Yrd Mat Min Exi Min Mat Sto Rec Scr Total 5482 | 98 735 277 244 251 383 722 237 2535 Wait 132 | 1 22 6 4 12 5 23 32 27 Move 4792 | 65 598 239 236 220 248 568 200 2418 Hop . | . . . . . . . . . Pick Up 107 | 12 23 8 1 1 18 22 . 22 Fast Attach 18 | 1 5 . . . 4 6 . 2 Attach 28 | 6 . . . 1 9 3 . 9 Detach 6 | . 3 . 1 . 2 . . . Swap 66 | . 15 4 1 3 12 13 . 18 Drop 94 | . 15 5 1 1 16 27 . 29 Fire 237 | 13 54 15 . 13 69 60 5 8 Melee 2 | . . . . . . . . 2 Ram . | . . . . . . . . . Kick . | . . . . . . . . . Crush . | . . . . . . . . . Escape Stasis . | . . . . . . . . . Rewire . | . . . . . . . . . Trap . | . . . . . . . . . Miscellaneous . | . . . . . . . . . Route ------- -11/Scrapyard -10/Materials (discovered 5 exits: *Mat x3 / [*Min] / [*Sub]) -10/Mines (discovered 2 exits: Mat / *Exi) -10/Exiles -9/Mines -8/Materials -8/Storage (discovered 2 exits: [*Fac] / *Rec) -8/Recycling (discovered 2 exits: *Fac / *Scr) -8/Scraptown (discovered 1 exit: *Fac) History --------- Turn | Location | Event 29 | -11/Scrapyard | Discovered new exit (range 16) 132 | -11/Scrapyard | Entered Materials 323 | -10/Materials | Build established: Mutant 338 | -10/Materials | Discovered new exit (range 16) 390 | -10/Materials | Discovered new exit (range 15) 488 | -10/Materials | Discovered new exit (range 14) 675 | -10/Materials | Discovered new exit (range 14) 1035 | -10/Materials | Discovered new exit (range 16) 1241 | -10/Materials | Prayed at D.C.S.S. Altar Unit 1276 | -10/Materials | Entered Mines 1343 | -10/Mines | Found DCF Scrap (11 items) 1411 | -10/Mines | A weapon hastily lodged in a ceiling crevice suddenly fell to the ground 1503 | -10/Mines | Identified exit to Materials 1555 | -10/Mines | Ranged accuracy permanently improved by X0-1V1 (+6%; -60 max core) 1630 | -10/Mines | Assisted by bots powering up and referring to "LRC-V3" 1654 | -10/Mines | Deemed a non-threat by the Exiles lab entrance 1654 | -10/Mines | Discovered new exit (range 5) 1665 | -10/Mines | Entered Exiles 1665 | -10/Exiles | Accompanied by 3 allies 1699 | -10/Exiles | Met 8R-AWN 1721 | -10/Exiles | Met EX-HEX 1769 | -10/Exiles | Met EX-BIN 1784 | -10/Exiles | Met EX-DEC 1790 | -10/Exiles | Learned location of Zion (-6) 1964 | -10/Exiles | Discovered new exit (range 10) 1979 | -10/Exiles | Entered Mines 1979 | -9/Mines | Accompanied by 3 allies 2022 | -9/Mines | Assembled infested the area 2234 | -9/Mines | Discovered new exit (range 7) 2323 | -9/Mines | Entered Materials 2323 | -8/Materials | Evolved 4 slots: Propulsion x2, Utility x2 2409 | -8/Materials | X0-1V1 released a cloud of subatomizers 2488 | -8/Materials | Identified exit to Storage 2488 | -8/Materials | X0-1V1 revealed exit location to -8/Storage 2947 | -8/Materials | Sterilization system engaged 2947 | -8/Materials | Non-combat units ordered to evacuate 3031 | -8/Materials | Build established: Scavenger-Mutant 3043 | -8/Materials | Entered Storage 3062 | -8/Storage | Inventory capacity permanently improved by X0-1V1 (+2; -200 max core) 3115 | -8/Storage | Identified exit to Recycling 3115 | -8/Storage | X0-1V1 revealed exit location to -8/Recycling 3302 | -8/Storage | X0-1V1 put everyone to sleep 3453 | -8/Storage | Used back door to open Recycling access 3499 | -8/Storage | Discovered new exit (range 15) 3549 | -8/Storage | X0-1V1 turns hostiles against one another 3627 | -8/Storage | Loaded intel: 10 trap records 3644 | -8/Storage | X0-1V1 activates XOMVISION 3703 | -8/Storage | Learned 2 Lower Caves zone layouts 3747 | -8/Storage | X0-1V1 foreshadows a heat wave 3829 | -8/Storage | Learned location of 1 exit from Extension 3876 | -8/Storage | Learned Factory emergency access door positions 3907 | -8/Storage | Ambient heat levels rising (+10) 3912 | -8/Storage | Learned 8 Factory zone layouts 3939 | -8/Storage | Learned location of 1 exit from Extension 3977 | -8/Storage | Learned location of Extension (-6) 3994 | -8/Storage | Assisted by bots powering up and referring to "LRC-V3" 4029 | -8/Storage | X0-1V1 activates XOMVISION 4082 | -8/Storage | Entered Recycling 4082 | -8/Recycling | Accompanied by 10 allies 4258 | -8/Recycling | Identified exit to Factory 4258 | -8/Recycling | X0-1V1 revealed exit location to -6/Factory 4307 | -8/Recycling | Build established: Commander-Mutant 4328 | -8/Recycling | Scanned before Scraplab entrance 4346 | -8/Recycling | Entered Scraplab 4351 | -8/Recycling | X0-1V1 added 0b10 threat records associated with you (minor) 4356 | -8/Recycling | Discovered new exit (range 2) 4370 | -8/Recycling | X0-1V1 vaporized surrounding terrain (radius 16) 4389 | -8/Recycling | Entered Scraptown 4389 | -8/Scraptown | Accompanied by 10 allies 4605 | -8/Scraptown | Visited Symbiants 4633 | -8/Scraptown | Visited The Evicted 4695 | -8/Scraptown | Visited SPCMW 4750 | -8/Scraptown | Visited IN-MT5's Study 4773 | -8/Scraptown | Visited Red Mages 4842 | -8/Scraptown | Visited Assassins FH 4913 | -8/Scraptown | Visited UFD Registry 4913 | -8/Scraptown | Registered with UFD as "Fibermech" 4961 | -8/Scraptown | Visited Modified Component R&D 5026 | -8/Scraptown | Visited Research Penetration Think Tank 5060 | -8/Scraptown | Visited Scrapoid Pod Storage 5078 | -8/Scraptown | Visited Supply Room 5098 | -8/Scraptown | Visited Abandonware Association 5114 | -8/Scraptown | Learned abandonware demo "HACKBUD.EXE" 5114 | -8/Scraptown | Learned abandonware demo "REVENGE.EXE" 5141 | -8/Scraptown | Visited Infowarlord's Domain 5160 | -8/Scraptown | Visited Scrapoid Research Area 5320 | -8/Scraptown | Visited LU-1G1's Boring Crew 5338 | -8/Scraptown | Visited Botcube Research 5618 | -8/Scraptown | Discovered exit to Factory (range 13) 5751 | -8/Scraptown | Found Botcube 6522 | -8/Scraptown | Found Exp. Terrain Scan Processor 6753 | -8/Scraptown | Found Scrap Suit 6756 | -8/Scraptown | Found Scrap Suit 7050 | -8/Scraptown | Found Scrap Suit 7587 | -8/Scraptown | Visited Shadow of the Wyrm 7596 | -8/Scraptown | X0-1V1 brought Wyrm Statue to life 7596 | -8/Scraptown | Attacked by Scraptown defenders 7634 | -8/Scraptown | Attached CPS modules to Chaos Wyrm 7649 | -8/Scraptown | Core integrity fell below 50% 7649 | -8/Scraptown | Allies destroyed Triborg 7665 | -8/Scraptown | Core integrity fell below 20% 7669 | -8/Scraptown | Destroyed by D8-N9B(j) with Overtuned Pulse Rifle Last Messages --------------- Mak. Microdissipator Network, Ovr. Pulse Rifle. 07661_ X0-1V1's Piety Tracker destroyed. 07661_ X0-1V1 is mildly amused. 07662_ P3-ZR0(j) heat damages Lgt. Deuterium Engine, Ovr. Titanium Leg. 07662_ The unstable cave ceiling collapses. 07662_ X0-1V1 is amused. 07662_ Hvy. Battle Rifle destroyed. 07662_ P3-ZR0(j) overheating. 07663_ TC-W0M(E) destroyed. 07663_ P3-ZR0(j) overheating. 07663_ Acquired 2 matter. 07663_ Critical hit (Burn: +50). 07665_ Acquired 19 matter. 07666_ The unstable cave ceiling collapses. 07666_ P3-ZR0(j) overheating. 07666_ DQ-GOY(j) destroyed. 07666_ T3-CKT(h) destroyed. 07667_ Hvy. Battle Rifle destroyed. 07667_ P3-ZR0(j) overheating. 07669_ X0-1V1 howls with laughter! Map ----- +----------------------------------------------------+ | " # #???????# | | " """ # #???????# | | " "" # ################# #???##### | | " """ # #???????????????# #???#"""" | | " # #???????????????# #???#"""" | | "" " " # #######?????????# #???#"""" | | """ # """###???????# #???#"""" | | """ """ # # ""###?????# #???#"""" | | """""" # # " #?????# ! ###?#"""" | | ########## # " #?????# ""#"#"""" | | ?????????# # " #?????# %=""""#"""" | | ?????????# # " #?????# ""####### | | ########## # " #?????# [! ###?????# | | """""""" # # " #?????# =%* ######### | | " """ " #?????# !! | | " " # # " #?????# | | " # !! # ""###?????# | | "" # """#####?????#g | | " # ## ######; | | " """""" # | % | | #"# " # !! j | | ??# " # !=E =%= | | ??######## = = !%=[% * | | ???####### ![ [ *&[ [ [ ! % % | | ??## ! =%=% ==% *% #""""# | | ??# j @ DD [ ==% #????# | | #### E [ DD ! *%= #????# | | ###### ####### %;#### ####????# | | #???## # # ##??# #???????? | | "### #???# """""" # #???# #???????? | | "#?# #???# "" "" # %#???# #???????? | | "#?# #???# " " ## % =% #???# #???????? | | "#?# #???# " m " # [ == #???# #???????? | | "#?# #???# " r " # [ "#???# #???????? | | "#?# #???# " " # ##???# #???????? | | "#?# #???# "" "" # # # #???# #???????? | | #??# #???# """""" ## #####???# #???????? | | ???# #???## ??#######???????# #???????? | | ???# #???????#####?????????????????# #???????? | | ???# #????????????????????????###### #???????? | | ???# #??????????????????????"""""""" #???????? | | #### #?????????????????????""" """"" #???????? | | ##????????????##?????""" " "" #???????? | | #???????????? ?? #???????? | | ##????##?????? #?????" "" "" " #???????? | | ### ##????"""????"" "????????""""""" #???????? | | #??##????"" ""??""" "#????????"""""" #???????? | | ######???"" "?#""" "#?????????##### #???????? | | """""#??#" ""##"" "#?############# #???????? | | " "#??#"" ""##"" "#?#"""""""""""# #???????? | +----------------------------------------------------+ Best States ------------- Heat Dissipation 125 Energy Generation 17 Energy Capacity 1665 Matter Stores 501 Matter Capacity 1000 Sight Range 22 Terrain Scan Density 10 Resistance: KI 25 Resistance: TH 39 Evasion (%) 55 Recoil Reduction 4 Kinecelleration 30 Offensive Hacking 10 Item Schematics ----------------- None Robot Schematics ------------------ None Fabricated ------------ Nothing Repaired ---------- Nothing Studied --------- None Alien Tech Used ----------------- None Achievements -------------- None Challenges ------------ None Game ------ Seed GammaOvertunedPerforator Manual? 0 Play Time 01:09:28 Cumulative 654.1 hours Start 2026.08.28 @ 23:02:03 End 2026.09.03 @ 23:02:55 Sessions 12 Manual Loads 0 Difficulty Rogue Special Mode None Game No. 261 Rogue 261 Adventurer 0 Explorer 0 Win Type - Total 27 Types 15/1/6/2/0/1/1/1/0/0 Lore% 91 Gallery% 82 Achievement% 68 Wizard Run 0 Options --------- Layout 0 ASCII 0 Keyboard 1 Movement Numpad Keybinds 0 Fullscreen 2 Font 18/SmallcapsGlow Map View 76x50 Zoom Use 0% Tactical HUD 1 Map Filters NONE Filters NONE Steam 1 RUN: 699f6a25-2c01-4d86-b192-be90c14710d3